[Event "2nd European Youth GP 2017"]
[Site "Jermuk"]
[Date "2017.10.12"]
[Round "8"]
[White "Pogosyan, Stefan"]
[Black "Nesterov, Arseniy"]
[Result "0-1"]
[ECO "D47"]
[WhiteElo "2368"]
[BlackElo "2350"]
[Annotator "NA"]
[PlyCount "122"]
[EventDate "2017.??.??"]
[EventType "tourn"]
[EventCountry "ARM"]
[SourceTitle "playchess.com"]
[Source "ChessBase"]
[SourceQuality "1"]
[TimeControl "5400+30"]

1. d4 {[%emt 0:00:00]} d5 {[%emt 0:00:05]} 2. c4 {[%emt 0:00:00]} c6 {[%emt 0:00:02]} 3. Nc3 {[%emt 0:00:04]} Nf6 {[%emt 0:00:17]} 4. Nf3 {[%emt 0:00:09]} e6 {[%emt 0:00:34]} 5. e3 {[%emt 0:00:07]} Nbd7 {[%emt 0:00:11]} 6. Bd3 {[%emt 0:00:14]} dxc4 {[%emt 0:00:15]} 7. Bxc4 {[%emt 0:00:09]} b5 {[%emt 0:00:04]} 8. Bd3 {[%emt 0:00:14]} Bb7 {[%emt 0:00:09]} 9. e4 {[%emt 0:00:59]} b4 $1 {[%emt 0:00:09]} 10. Na4 {[%emt 0:03:30] LiveBook: 846 Games} c5 {[%emt 0:00:45]} 11. Nxc5 {[%emt 0:03:31] D47: Semi-Slav: Meran System} (11. e5 Nd5 12. dxc5 Nxc5 13. Nxc5 Bxc5 14. O-O Be7 15. Qe2 Qb6 16. Ng5 h6 17. Ne4 Rd8 18. Qf3 Ba6 19. Rd1 O-O 20. Qg3 Kh8 21. Qh3 Kg8 22. Bxh6 gxh6 23. Qxh6 f5 24. Qg6+ Kh8 25. Qh6+ Kg8 26. Qg6+ Kh8 27. Qh6+ {½-½ (27) Aronian,L (2777)-Karjakin,S (2760) Zuerich 2015}) 11... Bxc5 {[%emt 0:02:51]} 12. dxc5 {[%emt 0:00:28]} Nxc5 {[%emt 0:08:50]} 13. Bb5+ {[%emt 0:02:33]} Ke7 {[%emt 0:00:21]} 14. Qxd8+ {[%emt 0:06:41]} Rhxd8 {[%emt 0:00:43]} 15. e5 {[%emt 0:00:15]} Ng4 $146 {[%emt 0:13:42]} ({Predecessor:} 15... Nd5 16. O-O h6 17. Bc4 a5 18. b3 Rac8 {0-1 (65) Fridbertsson,A (2200)-Thorsteins,K (2495) Reykjavik 1997}) 16. Bg5+ {[%emt 0:09:55]} f6 {[%emt 0:00:07]} 17. Bd2 {[%emt 0:01:01]} a5 18. h3 Bxf3 {[%emt 0:29:07]} 19. hxg4 {[%emt 0:02:20]} Be4 {[%emt 0:00:51]} 20. exf6+ {[%emt 0:02:21]} Kxf6 {[%emt 0:04:19]} 21. Rh5 {[%emt 0:09:14]} Nd3+ {[%emt 0:07:39]} 22. Ke2 {[%emt 0:01:29]} Kf7 {[%emt 0:00:33]} 23. Bg5 {[%emt 0:07:55]} Rd5 {[%emt 0:16:24]} 24. Bc6 {[%emt 0:01:59]} Rc8 {[%emt 0:00:13]} 25. Bxd5 {[%emt 0:00:11]} Rc2+ {[%emt 0:01:55]} 26. Ke3 {[%emt 0:00:20]} exd5 {[%emt 0:00:23]} 27. f3 {[%emt 0:03:41]} Bg6 {[%emt 0:00:10]} 28. Rhh1 h6 29. Bh4 Nxb2 30. Rhc1 Rc4 31. f4 d4+ 32. Kd2 Be4 33. Rab1 Bxb1 34. Rxb1 Na4 35. Kd3 Rc3+ 36. Kxd4 Rc2 37. Re1 Rxa2 ({Much less strong is} 37... Rxg2 38. Re7+ Kg8 39. Re8+ Kh7 40. g5 $19) 38. Re7+ Kf8 {[%emt 0:15:58]} 39. Rb7 {[%emt 0:37:57]} Rxg2 {[%emt 0:00:40]} 40. Be7+ Kg8 41. Rb5 {[%emt 0:01:37]} Rxg4 {[%emt 0:01:57]} 42. Ke5 {[%emt 0:00:14]} Nb2 {[%emt 0:01:13]} 43. Kf5 {[%emt 0:00:09]} Rg3 {[%emt 0:00:14]} 44. Rxa5 {[%emt 0:00:34]} b3 {[%emt 0:00:14]} 45. Rb5 {[%emt 0:01:26]} Nc4 {[%emt 0:00:17]} 46. Bc5 {[%emt 0:00:23]} b2 {[%emt 0:01:12]} 47. Rb8+ {[%emt 0:02:15]} Kh7 {[%emt 0:00:06]} 48. Bd4 {[%emt 0:00:35]} Rg2 {[%emt 0:00:44]} 49. Ke6 {[%emt 0:00:54] [#]} Rg6+ $19 {[%emt 0:01:04]} (49... Nb6 $1 {[%mdl 512]} 50. Bxb2 (50. Rxb6 Rg6+) 50... Rxb2) 50. Kf5 {[%emt 0:02:17]} Rg2 {[%emt 0:00:01]} 51. Ke6 {[%emt 0:00:01]} Rd2 {[%emt 0:00:27]} 52. Bc3 {[%emt 0:01:06]} Re2+ {[%emt 0:01:04]} 53. Kd5 {[%emt 0:02:56]} Ne3+ {[%emt 0:00:08]} 54. Kd6 {[%emt 0:00:37]} Rc2 {[%emt 0:00:44]} 55. Be5 {[%emt 0:00:43]} h5 {[%emt 0:00:19]} 56. Ke6 {[%emt 0:02:17]} h4 {[%emt 0:00:40]} 57. Bxb2 {[%emt 0:01:28]} h3 {[%emt 0:00:27]} 58. Rb7 {[%emt 0:00:46]} Rg2 {[%emt 0:00:28]} 59. f5 {[%emt 0:01:11]} h2 {[%emt 0:00:08]} 60. f6 {[%emt 0:00:06]} h1=Q {[%emt 0:00:10]} 61. f7 {[%emt 0:00:02]} Rg6+ 0-1

[Event "2nd European Youth GP 2017"]
[Site "Jermuk"]
[Date "2017.10.12"]
[Round "8"]
[White "Gharibyan, Mamikon"]
[Black "Kaasen, Tor Fredrik"]
[Result "0-1"]
[ECO "D25"]
[WhiteElo "2346"]
[BlackElo "2371"]
[Annotator "NA"]
[PlyCount "88"]
[EventDate "2017.??.??"]
[EventType "tourn"]
[EventCountry "ARM"]
[SourceTitle "playchess.com"]
[Source "ChessBase"]
[SourceQuality "1"]
[TimeControl "5400+30"]

1. d4 {[%emt 0:00:00]} d5 {[%emt 0:00:24]} 2. c4 {[%emt 0:00:00]} dxc4 {[%emt 0:00:11]} 3. Nf3 {[%emt 0:01:18]} Nf6 {[%emt 0:00:17]} 4. e3 {[%emt 0:01:04]} b5 {[%emt 0:00:12]} 5. a4 {[%emt 0:01:26] LiveBook: 181 Games D25: Queen's Gambit Accepted: 4 e3: sidelines and 4...Bg4} b4 $1 {[%emt 0:00:26]} 6. Bxc4 {[%emt 0:02:12]} e6 {[%emt 0:00:13]} 7. O-O {[%emt 0:00:55]} Be7 {[%emt 0:00:23]} 8. Bb5+ {[%emt 0:11:00]} (8. Nbd2 O-O 9. b3 Bb7 10. Bb2 Nbd7 11. Qe2 c5 {1-0 (36) Riazantsev,A (2671)-Piorun,K (2657) Tallinn 2016}) 8... c6 {[%emt 0:02:08]} 9. Bd3 {[%emt 0:00:39]} O-O {[%emt 0:01:25]} 10. Qe2 $146 {[%emt 0:04:40]} ({Predecessor:} 10. e4 Bb7 11. e5 Nd5 12. h4 Nd7 {0-1 (33) Greenfeld,A (2568)-Westerberg,J (2488) Gothenburg 2016}) 10... Bb7 {[%emt 0:01:19]} 11. Rd1 {[%emt 0:09:41]} Nbd7 {[%emt 0:00:35]} 12. b3 {[%emt 0:12:35]} Rc8 {[%emt 0:06:16]} 13. Bb2 {[%emt 0:01:39]} Qc7 {[%emt 0:01:24]} 14. Nbd2 {[%emt 0:03:37]} Rfd8 {[%emt 0:01:27]} 15. Rac1 {[%emt 0:04:20]} Qb8 {[%emt 0:01:05]} 16. e4 {[%emt 0:05:08]} c5 {[%emt 0:02:27]} 17. d5 {[%emt 0:06:24]} exd5 {[%emt 0:07:27]} 18. e5 {[%emt 0:08:21] [#]} Nh5 $1 {[%emt 0:09:35]} 19. g3 {[%emt 0:04:25]} Nf8 {[%emt 0:03:08]} 20. Nh4 {[%emt 0:03:20]} Bxh4 {[%emt 0:07:27]} 21. Qxh5 {[%emt 0:00:05]} Be7 {[%emt 0:00:17]} 22. Re1 {[%emt 0:03:55]} (22. e6 $17 fxe6 23. Re1) 22... g6 {[%emt 0:01:23]} 23. Qg4 {[%emt 0:03:26]} Ne6 {[%emt 0:03:42]} 24. Bf1 {[%emt 0:01:52]} Ba8 {[%emt 0:09:57]} 25. Bg2 {[%emt 0:01:58]} Qb6 {[%emt 0:02:13]} 26. Qe2 {[%emt 0:01:30]} a5 {[%emt 0:00:34]} 27. Red1 {[%emt 0:03:36]} Bb7 {[%emt 0:00:37]} 28. Qb5 {[%emt 0:00:43]} Qa7 {[%emt 0:02:18]} 29. h4 {[%emt 0:03:26]} Rc7 {[%emt 0:06:01]} 30. Qe2 {[%emt 0:00:32]} Ba6 {[%emt 0:00:19]} 31. Qe3 {[%emt 0:00:05]} c4 {[%emt 0:02:19]} 32. Qxa7 {[%emt 0:00:27]} Rxa7 {[%emt 0:00:01]} 33. bxc4 {[%emt 0:00:48]} dxc4 {[%emt 0:00:05]} 34. Ne4 {[%emt 0:00:23]} c3 {[%emt 0:01:41]} 35. Rxd8+ {[%emt 0:00:12]} Bxd8 {[%emt 0:00:48]} 36. Nxc3 {[%emt 0:01:13]} bxc3 {[%emt 0:00:06]} 37. Rxc3 {[%emt 0:00:08]} Rc7 {[%emt 0:00:24]} 38. Rb3 {[%emt 0:00:09]} Rc8 {[%emt 0:02:05]} 39. Bd5 {[%emt 0:00:44]} Bc7 {[%emt 0:02:25]} 40. f4 {[%emt 0:01:08]} Rd8 {[%emt 0:00:59]} 41. Bc6 {[%emt 0:00:17]} (41. Bf3 $142 Nc5 42. Ra3) 41... Rd1+ {[%emt 0:00:40]} 42. Kg2 $19 {[%emt 0:00:13]} Nc5 {[%emt 0:00:31]} 43. Rc3 {[%emt 0:00:15]} Rd2+ {[%emt 0:00:09]} 44. Kf3 {[%emt 0:00:09]} Be2+ {[%emt 0:00:45]} 0-1

[Event "2nd European Youth GP 2017"]
[Site "Jermuk"]
[Date "2017.10.14"]
[Round "10"]
[White "Pultinevicius, Paulius"]
[Black "Zarubitski, Viachaslau"]
[Result "1/2-1/2"]
[ECO "A05"]
[WhiteElo "2387"]
[BlackElo "2311"]
[Annotator "NA"]
[PlyCount "36"]
[EventDate "2017.??.??"]
[EventType "tourn"]
[EventCountry "ARM"]
[SourceTitle "playchess.com"]
[Source "ChessBase"]
[SourceQuality "1"]
[TimeControl "5400+30"]

{[%evp 8,29,2,2,0,1,32767,32767,32767,-5,-4,-12,0,0,0,-4,-3,-8,16,29,27,0,8,12]} 1. Nf3 {[%emt 0:00:00]} Nf6 {[%emt 0:00:08]} 2. b3 {[%emt 0:00:00]} d5 {[%emt 0:00:32]} 3. Bb2 {[%emt 0:00:00]} Bf5 {[%emt 0:00:11]} 4. e3 {[%emt 0:00:06]} e6 {[%emt 0:00:06]} 5. Be2 {[%emt 0:01:17] LiveBook: 102 Games} h6 {[%emt 0:00:04]} 6. O-O {[%emt 0:00:38]} Bd6 {[%emt 0:01:26]} 7. d3 {[%emt 0:02:30]} O-O {[%emt 0:00:35]} 8. Ne5 {[%emt 0:17:37]} Nfd7 {[%emt 0:02:47]} 9. Nf3 {[%emt 0:11:40]} Nf6 {[%emt 0:01:50]} 10. Ne5 {[%emt 0:00:54]} Nfd7 {[%emt 0:00:05]} 11. Nf3 {[%emt 0:00:06]} c5 {[%emt 0:02:14]} 12. c4 {[%emt 0:02:20]} Nc6 {[%emt 0:01:37]} 13. cxd5 {[%emt 0:09:57]} exd5 {[%emt 0:00:10]} 14. Nc3 {[%emt 0:00:08]} Nf6 {[%emt 0:00:37]} 15. d4 $11 {[%emt 0:00:49]} cxd4 {[%emt 0:11:48]} 16. Nxd4 {[%emt 0:00:09]} Nxd4 {[%emt 0:00:07]} 17. Qxd4 {[%emt 0:00:22]} Re8 {[%emt 0:00:14]} 18. Rfd1 {[%emt 0:14:11]} Be5 {[%emt 0:10:07]} 1/2-1/2

[Event "2nd European Youth GP 2017"]
[Site "Jermuk"]
[Date "2017.10.14"]
[Round "10"]
[White "Gharibyan, Mamikon"]
[Black "Shubin, Kirill"]
[Result "0-1"]
[ECO "E11"]
[WhiteElo "2346"]
[BlackElo "2359"]
[Annotator "NA"]
[PlyCount "102"]
[EventDate "2017.??.??"]
[EventType "tourn"]
[EventCountry "ARM"]
[SourceTitle "playchess.com"]
[Source "ChessBase"]
[SourceQuality "1"]
[TimeControl "5400+30"]

1. d4 {[%emt 0:00:00]} e6 {[%emt 0:00:03]} 2. c4 {[%emt 0:00:00]} Nf6 {[%emt 0:00:10]} 3. Nf3 {[%emt 0:00:00]} Bb4+ {[%emt 0:00:04]} 4. Bd2 {[%emt 0:00:32]} a5 {[%emt 0:00:13]} 5. g3 {[%emt 0:02:23]} d6 {[%emt 0:00:15]} 6. Bg2 {[%emt 0:00:34]} Nbd7 {[%emt 0:00:05]} 7. O-O {[%emt 0:01:06]} e5 {[%emt 0:00:14]} 8. e3 {[%emt 0:01:35]} Bxd2 {[%emt 0:00:17]} 9. Nfxd2 {[%emt 0:02:16]} O-O {[%emt 0:04:11] LiveBook: 8 Games} 10. Nc3 {[%emt 0:00:45]} exd4 {[%emt 0:06:27]} 11. exd4 {[%emt 0:00:07]} c6 {[%emt 0:00:54]} 12. Re1 {[%emt 0:15:07]} Nb6 {[%emt 0:08:03]} 13. Qf3 {[%emt 0:09:31]} Be6 $11 {[%emt 0:05:34]} 14. b3 {[%emt 0:04:24]} a4 {[%emt 0:08:26]} 15. Qd3 {[%emt 0:08:02]} Ra5 {[%emt 0:13:18]} 16. Nf1 {[%emt 0:09:23]} axb3 {[%emt 0:05:25]} 17. axb3 {[%emt 0:00:05]} Qa8 {[%emt 0:00:05]} 18. Rac1 {[%emt 0:14:45]} Qa6 {[%emt 0:06:56]} 19. Qd2 {[%emt 0:03:01]} Ra3 {[%emt 0:00:53]} 20. Qb2 {[%emt 0:02:16]} Qa5 {[%emt 0:02:34]} 21. Nd2 {[%emt 0:07:00]} Qb4 {[%emt 0:03:30]} 22. Qc2 {[%emt 0:00:41]} d5 {[%emt 0:02:50]} 23. c5 {[%emt 0:03:53]} Nbd7 {[%emt 0:00:09]} 24. Ne2 {[%emt 0:00:59]} Rfa8 {[%emt 0:00:47]} 25. Qc3 {[%emt 0:00:41]} Qxc3 {[%emt 0:01:52]} 26. Nxc3 {[%emt 0:00:06]} Nb8 {[%emt 0:01:44]} 27. b4 {[%emt 0:10:20]} Na6 {[%emt 0:00:14]} 28. b5 {[%emt 0:00:13]} Nb4 {[%emt 0:00:18]} 29. Bf1 {[%emt 0:00:11]} Kf8 {[%emt 0:01:16]} 30. Nd1 {[%emt 0:03:03]} Nd3 {[%emt 0:00:53]} 31. Bxd3 {[%emt 0:01:18]} Rxd3 {[%emt 0:00:04]} 32. Nb1 {[%emt 0:00:34]} Rxd4 {[%emt 0:00:22]} 33. bxc6 {[%emt 0:00:37]} bxc6 {[%emt 0:00:03]} 34. Ne3 {[%emt 0:00:16]} Ra5 {[%emt 0:00:51]} 35. Re2 {[%emt 0:00:23]} Nd7 {[%emt 0:00:43]} 36. Nd2 {[%emt 0:00:33]} Rxc5 {[%emt 0:01:09]} 37. Rb1 {[%emt 0:00:23]} Rd3 {[%emt 0:01:03]} 38. Ra1 {[%emt 0:00:46]} g6 {[%emt 0:00:46]} 39. h4 {[%emt 0:00:47]} d4 {[%emt 0:01:00]} 40. Nef1 {[%emt 0:00:06]} Rc2 {[%emt 0:00:16]} 41. h5 {[%emt 0:00:29]} gxh5 {[%emt 0:02:44]} 42. Ra8+ {[%emt 0:00:04]} Ke7 {[%emt 0:00:34]} 43. Kg2 {[%emt 0:00:29]} Nc5 {[%emt 0:01:25]} 44. Ra7+ {[%emt 0:00:21]} Kf8 {[%emt 0:00:19]} 45. Re5 {[%emt 0:00:10]} Bd5+ {[%emt 0:00:32]} 46. Kh3 {[%emt 0:00:10]} Rdxd2 {[%emt 0:00:29]} 47. Nxd2 {[%emt 0:00:05]} Rxd2 {[%emt 0:00:03]} 48. f4 {[%emt 0:00:41]} Rd1 {[%emt 0:00:53]} 49. Ra8+ {[%emt 0:00:40]} Kg7 {[%emt 0:00:14]} 50. Kh4 {[%emt 0:00:03]} Rh1+ {[%emt 0:00:17]} 51. Kg5 {[%emt 0:00:04]} f6+ {[%emt 0:00:48]} 0-1

[Event "2nd European Youth GP 2017"]
[Site "Jermuk"]
[Date "2017.10.14"]
[Round "10"]
[White "Kacharava, Nikolozi"]
[Black "Kaasen, Tor Fredrik"]
[Result "1-0"]
[ECO "B48"]
[WhiteElo "2206"]
[BlackElo "2371"]
[Annotator "NA"]
[PlyCount "87"]
[EventDate "2017.??.??"]
[EventType "tourn"]
[EventCountry "ARM"]
[SourceTitle "playchess.com"]
[Source "ChessBase"]
[SourceQuality "1"]
[TimeControl "5400+30"]

1. e4 {[%emt 0:00:00]} c5 {[%emt 0:00:11]} 2. Nf3 {[%emt 0:00:00]} e6 {[%emt 0:00:16]} 3. d4 {[%emt 0:00:05]} cxd4 {[%emt 0:00:07]} 4. Nxd4 {[%emt 0:00:08]} Nc6 {[%emt 0:00:07]} 5. Nc3 {[%emt 0:00:19]} Qc7 {[%emt 0:00:07]} 6. Be3 {[%emt 0:00:16]} a6 {[%emt 0:00:08]} 7. Qf3 {[%emt 0:00:24]} d6 {[%emt 0:00:23]} 8. Qg3 {[%emt 0:01:36]} Bd7 {[%emt 0:03:51]} 9. Be2 {[%emt 0:04:10]} Nf6 {[%emt 0:06:45] LiveBook: 4 Games} 10. O-O {[%emt 0:02:13]} b5 {[%emt 0:02:06]} 11. a3 {[%emt 0:06:32]} Rc8 {[%emt 0:01:15]} 12. f4 {[%emt 0:05:46]} e5 {[%emt 0:10:15]} ({Black should try} 12... h5 $14) 13. fxe5 {[%emt 0:06:30]} dxe5 {[%emt 0:00:21]} 14. Nf5 $18 {[%emt 0:06:32]} Bxf5 {[%emt 0:26:47]} 15. Rxf5 {[%emt 0:08:05]} Qd7 {[%emt 0:10:11]} 16. Rxf6 {[%emt 0:11:08]} gxf6 {[%emt 0:00:06]} 17. Bg4 {[%emt 0:00:25]} Qd8 {[%emt 0:02:05]} 18. Bxc8 {[%emt 0:05:07]} Qxc8 {[%emt 0:00:06]} 19. Nd5 {[%emt 0:00:16]} Be7 {[%emt 0:02:20]} 20. Qg7 {[%emt 0:07:15]} Rf8 {[%emt 0:00:07]} 21. Bh6 {[%emt 0:01:11]} Nd4 {[%emt 0:02:34]} 22. Nxe7 {[%emt 0:03:23]} Kxe7 {[%emt 0:00:06]} 23. Qxf8+ {[%emt 0:00:06]} Qxf8 {[%emt 0:00:03]} 24. Bxf8+ {[%emt 0:00:10]} Kxf8 {[%emt 0:00:02]} 25. c3 {[%emt 0:02:46]} Nb3 {[%emt 0:01:49]} 26. Rd1 {[%emt 0:00:21]} Nc5 {[%emt 0:00:17]} 27. Rd6 Nxe4 {[%emt 0:01:02]} 28. Rxa6 {[%emt 0:00:37]} Ke7 {[%emt 0:00:19]} 29. a4 {[%emt 0:05:40]} bxa4 {[%emt 0:00:11]} 30. Rxa4 {[%emt 0:00:05]} f5 {[%emt 0:00:03]} 31. c4 {[%emt 0:01:33]} Kd6 {[%emt 0:00:31]} 32. b4 {[%emt 0:00:30]} Nd2 {[%emt 0:00:09]} 33. Ra6+ {[%emt 0:00:26]} Ke7 {[%emt 0:00:47]} 34. b5 {[%emt 0:00:42]} Nxc4 {[%emt 0:00:41]} 35. b6 {[%emt 0:00:13]} Kd7 {[%emt 0:01:12]} 36. b7 {[%emt 0:00:15]} Kc7 {[%emt 0:00:07]} 37. Rc6+ {[%emt 0:00:07]} Kxc6 {[%emt 0:00:11]} 38. b8=Q {[%emt 0:00:08]} Kd5 {[%emt 0:00:31]} 39. Qb7+ {[%emt 0:00:24]} Ke6 {[%emt 0:00:07]} 40. Qc8+ {[%emt 0:00:05]} Kd5 {[%emt 0:00:18]} 41. Qxf5 {[%emt 0:00:10]} Kd4 {[%emt 0:00:11]} 42. Qxf7 {[%emt 0:00:11]} e4 {[%emt 0:00:05]} 43. Qxh7 {[%emt 0:00:09]} Kd3 {[%emt 0:00:09]} 44. h4 {[%emt 0:00:27]} 1-0

[Event "2nd European Youth GP 2017"]
[Site "Jermuk"]
[Date "2017.10.15"]
[Round "11"]
[White "Shubin, Kirill"]
[Black "Pultinevicius, Paulius"]
[Result "1/2-1/2"]
[ECO "C77"]
[WhiteElo "2359"]
[BlackElo "2387"]
[Annotator "ChessBase"]
[PlyCount "113"]
[EventDate "2017.??.??"]
[EventType "tourn"]
[EventCountry "ARM"]
[SourceTitle "playchess.com"]
[Source "ChessBase"]
[SourceQuality "1"]
[TimeControl "5400+30"]

1. e4 {[%emt 0:00:00]} e5 {[%emt 0:00:04]} 2. Nf3 {[%emt 0:00:00]} Nc6 {[%emt 0:00:05]} 3. Bb5 {[%emt 0:00:00]} a6 {[%emt 0:00:04]} 4. Ba4 {[%emt 0:00:00]} Nf6 {[%emt 0:00:05]} 5. d3 {[%emt 0:00:00]} d6 {[%emt 0:01:05]} 6. c3 {[%emt 0:00:20]} Be7 {[%emt 0:00:06]} 7. O-O {[%emt 0:00:08]} O-O {[%emt 0:00:08]} 8. Re1 {[%emt 0:00:32]} b5 {[%emt 0:00:05]} 9. Bc2 {[%emt 0:00:07]} Re8 {[%emt 0:02:25]} 10. Nbd2 {[%emt 0:00:12]} Bf8 {[%emt 0:05:43]} 11. Nf1 {[%emt 0:02:15]} Bb7 {[%emt 0:00:42]} 12. Bg5 {[%emt 0:01:23]} Nb8 {[%emt 0:10:28]} 13. Ne3 {[%emt 0:00:32]} Nbd7 {[%emt 0:00:39]} 14. Nf5 {[%emt 0:06:56]} h6 {[%emt 0:01:32]} 15. Bh4 {[%emt 0:01:14]} g6 {[%emt 0:03:54]} 16. Ne3 {[%emt 0:00:04]} Qc8 {[%emt 0:11:37]} 17. h3 {[%emt 0:02:14]} Bg7 {[%emt 0:03:46]} 18. Nh2 {[%emt 0:00:59]} d5 {[%emt 0:13:43]} 19. Neg4 {[%emt 0:04:07]} Nh5 {[%emt 0:03:57]} 20. Qf3 {[%emt 0:13:05]} dxe4 {[%emt 0:10:22]} 21. dxe4 {[%emt 0:00:04]} f5 {[%emt 0:00:33]} 22. Ne3 {[%emt 0:00:25]} Ndf6 {[%emt 0:03:20]} 23. g4 {[%emt 0:01:32]} fxe4 {[%emt 0:02:18]} 24. Qh1 {[%emt 0:00:12]} Nf4 {[%emt 0:02:46]} 25. Bxf6 {[%emt 0:00:07]} Nxh3+ {[%emt 0:02:48]} 26. Kf1 {[%emt 0:00:04]} Bxf6 {[%emt 0:01:17]} 27. Bxe4 {[%emt 0:00:12]} Bxe4 {[%emt 0:00:33]} 28. Qxe4 {[%emt 0:00:05]} Kg7 {[%emt 0:02:22]} 29. Rad1 {[%emt 0:00:17]} Rf8 {[%emt 0:07:40]} 30. Qg2 {[%emt 0:01:27]} Bh4 {[%emt 0:03:24]} 31. Qxh3 {[%emt 0:00:06]} Bxf2 {[%emt 0:00:04]} 32. Ke2 {[%emt 0:00:11]} Bxe1 {[%emt 0:00:08]} 33. Rxe1 {[%emt 0:00:05]} Qe6 {[%emt 0:00:33]} 34. b3 {[%emt 0:01:05]} Qc6 {[%emt 0:00:56]} 35. Qg3 {[%emt 0:05:39]} Kh7 {[%emt 0:01:19]} 36. Nf3 {[%emt 0:00:48]} e4 {[%emt 0:01:49]} 37. Nd2 {[%emt 0:04:22]} Qxc3 {[%emt 0:01:08]} 38. Nxe4 {[%emt 0:00:32]} Qb2+ {[%emt 0:00:11]} 39. Nd2 {[%emt 0:00:10]} Rf7 {[%emt 0:00:11]} 40. Rb1 {[%emt 0:01:29]} Qxa2 {[%emt 0:03:58]} 41. Rc1 {[%emt 0:01:21]} Qa5 {[%emt 0:00:44]} 42. Qe5 {[%emt 0:05:24]} Raf8 {[%emt 0:02:09]} 43. Ne4 {[%emt 0:00:38]} Qa2+ {[%emt 0:00:30]} 44. Nc2 {[%emt 0:01:56]} Kg8 {[%emt 0:00:39]} 45. Qe6 {[%emt 0:00:07]} Kg7 {[%emt 0:00:17]} 46. Qe5+ {[%emt 0:00:07]} Kg8 {[%emt 0:00:04]} 47. Qe6 {[%emt 0:00:08]} Kh7 {[%emt 0:01:15]} 48. Qe5 {[%emt 0:00:41]} Qxb3 {[%emt 0:00:32]} 49. Ng5+ {[%emt 0:00:03]} Kg8 {[%emt 0:00:05]} 50. Nxf7 {[%emt 0:00:10]} Qc4+ {[%emt 0:00:22]} 51. Kd2 {[%emt 0:00:38]} Rxf7 {[%emt 0:00:25]} 52. Nd4 {[%emt 0:00:19]} Qb4+ {[%emt 0:00:27]} 53. Kd3 {[%emt 0:00:20]} Qa3+ {[%emt 0:00:41]} 54. Rc3 {[%emt 0:00:08]} Qa2 {[%emt 0:00:22]} 55. Rc2 {[%emt 0:00:29]} Qa3+ {[%emt 0:00:15]} 56. Rc3 {[%emt 0:00:03]} Qa2 {[%emt 0:00:04]} 57. Rc2 {[%emt 0:00:12]} 1/2-1/2